bitfinex/quotes_ETHUSD_20250323
["timestamp","ask_amount","ask_price","bid_price","bid_amount"]
[1742774069474,4.9838,2006.5,2006.4,4.758]
[1742774069998,7.98361,2006.6,2006.4,4.758]
[1742774070364,3.0,2006.6,2006.4,4.758]
[1742774071993,7.98364,2006.6,2006.4,4.758]
[1742774072166,7.98364,2006.6,2006.3,27.565]
[1742774072167,4.9838,2006.5,2006.3,27.565]
[1742774072366,7.98369,2006.6,2006.4,4.743]
[1742774072698,12.96748,2006.6,2006.4,4.743]
[1742774072902,4.9838,2006.5,2006.4,4.743]
[1742774073712,7.98369,2006.6,2006.4,4.743]
[1742774073882,4.9838,2006.5,2006.4,4.741]
[1742774074218,7.9838,2006.5,2006.4,4.741]
[1742774074502,7.98405,2006.4,2006.3,27.565]
[1742774074702,7.98405,2006.4,2006.3,32.306]
[1742774078513,7.98405,2006.4,2006.3,4.741]
[1742774081224,3.0,2006.4,2005.9,0.73807888]
[1742774081385,4.98475,2006.2,2006.0,4.732]
[1742774082091,7.98405,2006.4,2006.0,4.732]
[1742774082289,7.98405,2006.4,2006.0,9.71683]
[1742774082703,3.0,2006.2,2006.0,4.732]
[1742774083520,3.0,2006.2,2006.1,0.7606]
[1742774084021,7.98389,2006.5,2006.1,5.74528]
[1742774086126,12.96789,2006.5,2006.1,5.74528]
[1742774086688,7.98389,2006.5,2006.1,5.74528]
[1742774087112,12.96788,2006.5,2006.1,5.74528]
[1742774087288,12.96788,2006.5,2006.1,0.7606]
[1742774087289,7.98389,2006.5,2006.1,0.7606]
[1742774087493,4.98409,2006.4,2006.1,0.7606]
[1742774088622,4.98409,2006.4,2006.2,0.46144254]
[1742774088919,4.98429,2006.3,2006.2,0.46144254]
[1742774089832,3.0,2006.2,2006.1,0.7606]
[1742774090422,3.0,2006.3,2006.1,0.7606]
[1742774090944,3.0,2006.3,2006.1,1.22208653]
[1742774091731,7.9843,2006.3,2006.1,1.22208653]
[1742774091924,3.0,2006.3,2006.1,1.22208653]
[1742774092119,3.0,2006.6,2006.0,5.47042301]
[1742774092323,0.38006693,2006.7,2006.0,0.73842301]
[1742774092324,7.98479,2006.1,2006.0,0.73842301]
[1742774092526,3.0,2006.1,2006.0,10.44446301]
[1742774093122,3.0,2006.1,2006.0,10.16759875]
[1742774093656,4.98381,2006.5,2006.1,4.98471]
[1742774093860,9.96672,2006.7,2006.2,0.8225]
[1742774094148,3.0,2006.6,2006.3,4.98427]
[1742774094353,3.0,2006.6,2006.4,4.725]
[1742774094753,3.0,2006.6,2006.5,0.8225]
[1742774095063,4.98283,2006.9,2006.5,5.80613]
[1742774095264,0.55781666,2007.7,2006.6,0.8723338]
[1742774095560,4.98076,2007.8,2007.3,4.98171]
[1742774095851,4.98111,2007.6,2007.4,4.74]
[1742774096053,4.98132,2007.5,2007.4,4.74]
[1742774096227,7.98132,2007.5,2007.4,4.74]
[1742774096627,4.98132,2007.5,2007.4,4.74]
[1742774096938,7.98132,2007.5,2007.4,4.74]
[1742774097456,8.07652055,2007.5,2007.4,4.74]
[1742774097629,5.07652055,2007.5,2007.4,4.74]
[1742774097829,8.07652055,2007.5,2007.4,4.74]
[1742774098527,7.9816,2007.4,2007.1,0.8225]
[1742774098728,7.9816,2007.4,2007.2,4.737]
[1742774098934,0.09504654,2007.3,2007.2,4.737]
[1742774103856,0.09504654,2007.3,2007.2,5.76021169]
[1742774104722,3.09504654,2007.3,2007.2,5.76021169]
[1742774104969,0.09504654,2007.3,2007.2,5.76021169]
[1742774105339,0.09504654,2007.3,2007.2,5.74921169]
[1742774106765,0.09504654,2007.3,2007.2,1.02321169]
[1742774107061,0.09504654,2007.3,2007.2,4.724]
[1742774107264,0.09504654,2007.3,2007.2,8.532988]
[1742774109563,5.07685654,2007.3,2007.1,0.8225]
[1742774109733,4.98231,2007.1,2007.0,27.561]
[1742774110061,0.09607571,2007.1,2007.0,32.283]
[1742774110973,8.07838571,2007.1,2007.0,27.561]
[1742774111125,8.07838571,2007.1,2007.0,32.283]
[1742774112050,3.0,2007.0,2006.4,27.559]
[1742774112258,3.09607571,2007.1,2006.5,4.724]
[1742774112259,4.98305,2006.8,2006.5,4.724]
[1742774112558,3.09463492,2006.7,2006.5,4.724]
[1742774113150,8.07794492,2006.7,2006.5,4.724]
[1742774114476,3.0,2006.6,2006.5,4.724]
[1742774114677,3.09405406,2006.6,2006.5,4.724]
[1742774116482,8.07760406,2006.6,2006.5,4.724]
[1742774117176,8.07760406,2006.6,2006.1,4.98473]
[1742774117177,12.96879,2006.3,2006.0,0.8111]
[1742774117350,12.96879,2006.3,2006.1,4.723]
[1742774117675,7.98454,2006.2,2006.1,4.723]
[1742774118079,3.0,2006.2,2006.1,4.723]
[1742774118876,3.0,2006.2,2006.1,4.722]
[1742774120980,7.98454,2006.2,2006.1,4.722]
[1742774124784,7.98454,2006.2,2005.8,28.3368]
[1742774124947,3.0,2006.1,2005.9,4.716]
[1742774125476,4.98484,2006.1,2005.9,4.716]
[1742774125784,7.98484,2006.1,2005.9,4.716]
[1742774126486,3.0,2006.1,2005.9,4.716]
[1742774131453,3.0,2006.0,2005.8,4.630833]
[1742774131657,7.98579,2005.7,2005.6,8.0]
[1742774132287,7.98579,2005.7,2005.5,5.4918]
[1742774132494,3.0,2005.7,2005.5,5.4918]
[1742774133984,3.0,2005.7,2005.5,6.51286871]
[1742774134490,3.0,2005.6,2005.5,5.73906871]
[1742774147383,3.0,2005.6,2005.5,4.706]
[1742774147697,3.0,2005.3,2005.2,35.571]
[1742774148018,3.0,2005.3,2005.2,40.278]
[1742774148179,3.0,2005.3,2005.2,27.571]
[1742774148507,4.98652,2005.5,2005.2,32.278]
[1742774148877,3.0,2005.4,2005.2,33.29068099]
[1742774150614,7.98657,2005.4,2005.2,33.29068099]
[1742774150794,7.98657,2005.4,2005.2,32.278]
[1742774151111,7.98636,2005.5,2005.2,32.278]
[1742774151282,4.98656,2005.4,2005.2,32.278]
[1742774152117,7.98636,2005.5,2005.2,32.278]
[1742774152783,12.97284,2005.5,2005.2,32.278]
[1742774153639,7.98636,2005.5,2005.2,32.278]
[1742774154134,12.97284,2005.5,2005.2,32.278]
[1742774156131,4.98654,2005.4,2005.2,32.278]
[1742774159226,3.0,2005.3,2005.2,32.278]
[1742774160826,3.0,2005.3,2005.2,32.73875655]
[1742774161719,3.0,2005.3,2005.2,32.72275655]
[1742774164733,3.0,2005.3,2005.2,5.15175655]
[1742774166035,3.0,2005.3,2005.2,4.691]
[1742774166539,3.0,2005.3,2005.2,5.67876166]
[1742774166713,3.0,2005.3,2005.2,6.13982394]
[1742774169940,7.98678,2005.3,2005.2,5.15206228]
[1742774171330,7.98678,2005.3,2005.2,0.46106228]
[1742774171533,7.98678,2005.3,2005.2,5.14306228]
[1742774172534,7.98678,2005.3,2005.2,4.682]
[1742774175441,7.98753,2005.0,2004.9,27.583]
[1742774175655,7.98753,2005.0,2004.9,4.681]
[1742774177528,4.98802,2004.8,2004.7,1.012953]
[1742774177733,7.98802,2004.8,2004.7,4.681]
[1742774180326,3.0,2004.8,2004.7,4.681]
[1742774181838,3.0,2004.8,2004.5,29.35975942]
[1742774181839,3.0,2004.7,2004.5,29.35975942]
[1742774182027,3.0,2004.7,2004.6,4.681]
[1742774183259,3.0,2004.7,2004.6,8.58510174]
[1742774183883,3.0,2004.7,2004.6,3.90410174]
[1742774184031,3.0,2004.7,2004.6,8.58610174]
[1742774188359,3.0,2004.7,2004.6,4.682]
[1742774192069,4.98553,2005.9,2005.2,5.77243]
[1742774192234,0.1,2006.9,2004.7,0.55]
[1742774192235,4.98406,2006.4,2005.3,7.69320336]
[1742774192434,4.98256,2007.0,2005.9,4.98508]
[1742774192656,4.98399,2006.5,2006.0,5.5556]
[1742774192864,7.98453,2006.3,2005.7,0.7856]
[1742774193165,4.98541,2005.9,2005.8,4.774]
[1742774193469,3.0,2005.9,2005.7,5.23588454]
[1742774193641,4.774,2006.7,2005.7,5.75947299]
[1742774193642,4.98394,2006.5,2005.7,5.75947299]
[1742774193848,4.98418,2006.4,2005.8,0.7856]
[1742774194053,4.98394,2006.5,2005.8,0.7856]
[1742774194375,4.98357,2006.6,2005.9,4.98515]
[1742774194547,3.0,2006.5,2005.9,6.1382153]
[1742774194950,4.98357,2006.6,2005.9,6.1382153]
[1742774195338,3.0,2006.3,2005.9,1.1530653]
[1742774195947,3.0,2006.4,2005.9,1.1530653]
[1742774196165,3.0,2006.4,2006.0,0.69241753]
[1742774196379,3.0,2006.6,2006.1,4.791]
[1742774196668,7.98355,2006.6,2006.1,4.791]
[1742774197449,7.98355,2006.6,2006.2,0.8216]
[1742774197644,3.0,2006.5,2006.2,0.8216]
[1742774198505,4.97935,2008.3,2006.6,4.98355]
[1742774198649,4.9847,2008.2,2007.3,4.98168]
[1742774198851,4.9847,2008.2,2007.4,4.903]
[1742774199155,4.9847,2008.2,2007.4,9.88451]
[1742774199405,3.0,2008.1,2007.4,4.903]
[1742774199995,4.9847,2008.2,2007.2,27.583]
[1742774199996,0.005,2008.2,2007.2,27.583]
[1742774200149,4.98088,2007.7,2007.2,27.583]
[1742774200344,3.0,2007.6,2007.3,5.028]
[1742774200548,3.0,2007.6,2007.2,32.611]
[1742774200779,7.9807,2007.8,2007.2,32.611]
[1742774201297,7.98131,2007.6,2007.2,27.583]
[1742774201466,3.0,2007.4,2007.0,5.023]
[1742774201794,3.09671301,2007.3,2007.0,5.023]
[1742774203186,3.0,2007.1,2006.7,0.8216]
[1742774203382,7.98249,2007.1,2006.6,32.592]
[1742774203593,0.09552532,2007.0,2006.6,32.592]
[1742774204015,3.0,2006.9,2006.6,32.592]
[1742774204469,0.0952692,2006.8,2006.6,32.592]
[1742774204672,3.0,2006.9,2006.6,32.592]
[1742774204890,3.0,2007.1,2006.6,32.592]
[1742774205091,3.0,2006.9,2006.6,32.592]
[1742774205502,0.09459139,2006.8,2006.4,0.8216]
[1742774205684,3.0,2006.9,2006.4,5.8286]
[1742774205887,0.09459139,2006.8,2006.4,5.8286]
[1742774206088,3.0,2006.9,2006.4,5.8286]
[1742774206287,0.09459139,2006.8,2006.4,5.8286]
[1742774206482,3.0,2007.1,2006.4,12.55696589]
[1742774206923,0.09435303,2007.0,2006.4,12.55696589]
[1742774207790,0.09435303,2007.0,2006.6,4.98353]
[1742774208211,7.98195,2007.3,2006.6,4.98353]
[1742774208708,3.0,2007.5,2006.7,5.80471]
[1742774208913,0.09454932,2007.2,2006.9,4.98276]
[1742774209087,0.09454932,2007.2,2006.8,4.995]
[1742774209088,0.09445445,2007.1,2007.0,4.98242]
[1742774209288,3.0,2007.5,2006.9,4.9828]
[1742774209491,0.09473903,2007.4,2006.9,4.9828]
[1742774209889,0.09473903,2007.4,2006.8,4.995]
[1742774210095,3.0,2007.3,2006.9,4.991]
[1742774210311,0.09429457,2007.2,2006.9,4.991]
[1742774210888,3.0,2007.5,2006.9,4.991]
[1742774211104,0.0944843,2007.4,2006.9,4.991]
[1742774211611,3.0,2007.3,2006.9,4.991]
[1742774211818,3.0944843,2007.4,2006.9,4.991]
[1742774212112,0.09452208,2007.3,2006.9,4.991]
[1742774217936,5.07636208,2007.3,2006.9,4.991]
[1742774218318,0.09452208,2007.3,2006.9,4.991]
[1742774219605,3.0,2007.0,2006.7,0.8216]
[1742774219924,7.9827,2007.0,2006.6,4.956]
[1742774220441,4.9827,2007.0,2006.6,4.956]
[1742774220924,3.0,2006.9,2006.5,0.7769]
[1742774221097,3.0,2006.9,2006.6,4.952]
[1742774221841,3.0,2007.0,2006.6,4.952]
[1742774221995,7.98259,2007.0,2006.6,4.952]
[1742774222729,4.98144,2007.5,2006.8,4.98291]
[1742774222898,3.0,2007.3,2006.9,0.7769]
[1742774224343,7.98183,2007.3,2006.9,0.7769]
[1742774225122,7.98183,2007.3,2007.0,4.941]
[1742774225329,3.0,2007.3,2007.0,4.941]
[1742774225524,9.96257,2007.6,2007.0,4.941]
[1742774225822,4.98086,2007.7,2007.2,0.7568]
[1742774226027,3.0,2007.6,2007.2,0.7568]
[1742774226410,3.0,2007.7,2007.2,5.73884]
[1742774227127,0.36864729,2008.4,2007.3,4.98181]
[1742774227318,9.96003,2008.1,2007.5,0.7568]
[1742774227507,5.07409477,2008.0,2007.5,0.7568]
[1742774227707,3.0,2007.8,2007.5,0.7568]
[1742774228117,0.09360028,2007.7,2007.4,4.934]
[1742774228309,5.07444028,2007.7,2007.3,0.7568]
[1742774228509,5.07444028,2007.7,2007.4,4.93]
[1742774228709,7.98107,2007.6,2007.5,0.45916442]
[1742774229117,8.07504487,2007.6,2007.5,0.45916442]
[1742774230038,3.0,2007.3,2007.2,4.929]
[1742774230448,0.09344064,2007.3,2007.2,4.929]
[1742774230612,0.09344064,2007.3,2007.2,11.78644]
[1742774230813,4.98047,2007.9,2007.3,5.81187]
[1742774231112,3.09368162,2007.8,2007.3,5.81187]
[1742774231325,3.09368162,2007.8,2007.4,4.98155]
[1742774231511,3.09368162,2007.8,2007.3,5.81188]
[1742774231828,8.07431162,2007.8,2007.3,6.38238627]
[1742774232434,8.07431162,2007.8,2007.4,0.45934379]
[1742774232728,3.09368162,2007.8,2007.4,0.45934379]
[1742774232934,3.09368162,2007.8,2007.4,5.44088379]
[1742774233428,8.07429162,2007.8,2007.4,0.45934379]
[1742774233652,8.07429162,2007.8,2007.3,6.38230627]
[1742774233927,0.09368162,2007.8,2007.3,6.38221627]
[1742774234132,7.98013,2008.0,2007.4,6.22443963]
[1742774234345,12.96032,2008.0,2007.5,0.8301]
[1742774234505,0.09377644,2007.9,2007.6,4.912]
[1742774235702,3.0,2007.8,2007.6,4.912]
[1742774236103,0.09661844,2007.7,2007.6,4.912]
[1742774236301,8.44e-06,2007.7,2007.6,43.34663309]
[1742774236525,0.005,2008.2,2007.9,4.98022]
[1742774236720,0.005,2008.2,2008.1,0.8301]
[1742774239447,0.005,2008.2,2008.1,5.80993]
[1742774239734,0.005,2008.2,2008.1,2.399581]
[1742774240534,0.005,2008.2,2008.1,2.44937251]
[1742774240758,0.005,2008.2,2008.1,7.42920251]
[1742774240921,0.005,2008.2,2008.1,7.379411]
[1742774241320,0.005,2008.2,2008.1,7.42920251]
[1742774241746,0.005,2008.2,2008.1,7.91490251]
[1742774241921,0.005,2008.2,2008.1,12.755111]
[1742774242120,0.005,2008.2,2008.1,7.224281]
[1742774243348,0.005,2008.2,2008.1,12.204111]
[1742774243550,0.005,2008.2,2008.1,13.4187176]
[1742774243753,0.005,2008.2,2008.1,12.754111]
[1742774244158,0.005,2008.2,2008.1,20.754111]
[1742774245858,0.005,2008.2,2008.1,48.304111]
[1742774246827,0.005,2008.2,2008.1,48.76041998]
[1742774249659,0.005,2008.2,2008.1,48.74441998]
[1742774249866,0.005,2008.2,2008.1,43.87141998]
[1742774250028,0.005,2008.2,2008.1,48.74341998]
[1742774250232,0.005,2008.2,2008.1,48.74241998]
[1742774250445,0.005,2008.2,2008.1,48.74141998]
[1742774250746,0.005,2008.2,2008.1,48.74041998]
[1742774251151,0.005,2008.2,2008.1,48.284111]
[1742774253862,0.005,2008.2,2008.1,48.64974193]
[1742774255634,0.005,2008.2,2008.1,43.78074193]
[1742774255864,0.005,2008.2,2008.1,48.63574193]
[1742774256163,0.005,2008.2,2008.1,48.63474193]
[1742774262970,1e-05,2008.2,2008.1,48.63474193]
[1742774264071,1e-05,2008.2,2008.1,51.63474193]
[1742774265677,0.0940842,2008.8,2008.5,5.7653]
[1742774265973,0.0940842,2008.8,2008.6,10.44079922]
[1742774266170,0.0940842,2008.8,2008.6,10.39102]
[1742774266747,0.0940842,2008.8,2008.6,10.391]
[1742774267247,0.0940842,2008.8,2008.6,18.391]
[1742774268582,0.0940842,2008.8,2008.7,5.02811926]
[1742774268873,0.0940842,2008.8,2008.7,8.73562193]
[1742774269247,0.0940842,2008.8,2008.7,16.73562193]
[1742774269877,0.0940842,2008.8,2008.7,44.27162193]
[1742774273470,0.0940842,2008.8,2008.7,45.18792783]
[1742774274583,0.0940842,2008.8,2008.7,46.17884961]
[1742774274882,0.0940842,2008.8,2008.7,46.55904962]
[1742774275853,0.0940842,2008.8,2008.7,51.37804962]
[1742774276186,0.0940842,2008.8,2008.7,51.37704962]
[1742774277883,4.2e-06,2008.8,2008.7,51.37304962]
[1742774278197,0.005,2009.5,2009.4,4.9766]
[1742774278353,0.005,2009.5,2009.4,11.2201543]
[1742774278553,0.005,2009.5,2009.4,11.1704]
[1742774278877,0.005,2009.5,2009.4,13.62713671]
[1742774279198,0.005,2009.5,2009.2,5.78989]
[1742774279398,4.97596,2009.7,2009.4,4.833]
[1742774279570,4.97575,2009.8,2009.4,4.833]
[1742774279970,4.97587,2009.7,2009.4,4.833]
[1742774280482,4.97512,2010.0,2009.3,4.835]
[1742774280654,4.9761,2009.7,2009.3,4.835]
[1742774280854,4.97623,2009.6,2009.3,4.835]
[1742774281058,4.9761,2009.7,2009.3,4.835]
[1742774281059,4.97601,2009.7,2009.3,4.835]
[1742774281490,4.97601,2009.7,2009.3,4.97683]
[1742774281491,3.0,2009.6,2009.3,4.97683]
[1742774281659,3.0,2009.6,2009.4,4.837]
[1742774281859,7.97564,2009.8,2009.4,4.837]
[1742774282080,7.97564,2009.8,2009.4,9.81349]
[1742774282081,3.0,2009.8,2009.4,9.81349]
[1742774282465,7.97563,2009.8,2009.4,9.81349]
[1742774282663,12.95144,2009.8,2009.4,4.837]
[1742774282867,4.97589,2009.7,2009.4,4.837]
[1742774283080,7.97563,2009.8,2009.4,4.837]
[1742774283286,12.95146,2009.8,2009.4,4.837]
[1742774283455,7.97563,2009.8,2009.4,4.837]
[1742774284193,4.97989,2010.1,2010.0,4.97512]
[1742774284194,0.005,2010.1,2010.0,4.97512]
[1742774284511,0.01,2010.4,2010.1,5.78767]
[1742774284789,0.01,2010.4,2010.3,5.52438]
[1742774284987,0.01,2010.4,2010.3,4.97438]
[1742774285190,0.01,2010.4,2010.3,19.725548]
[1742774285489,0.1209504,2010.8,2010.7,6.27419]
[1742774285690,0.1209504,2010.8,2010.7,11.01919]
[1742774285867,0.1209504,2010.8,2010.5,0.7508]
[1742774286068,4.97339,2010.7,2010.3,9.626168]
[1742774286268,4.97339,2010.7,2010.1,13.303]
[1742774286569,3.1209504,2010.8,2010.1,8.0]
[1742774286891,4.97425,2010.4,2010.1,8.0]
[1742774287056,7.9745,2010.3,2010.1,8.0]
[1742774287263,3.0,2010.5,2009.9,5.297]
[1742774287479,3.0,2010.3,2009.6,8.0]
[1742774287790,4.97564,2009.8,2009.6,8.0]
[1742774287996,4.97586,2009.7,2009.6,8.0]
[1742774288166,4.97586,2009.7,2009.3,27.53]
[1742774288362,4.97564,2009.8,2009.3,29.23317495]
[1742774288762,9.95144,2009.8,2009.3,29.23317495]
[1742774289189,4.97586,2009.7,2009.3,29.23317495]
[1742774289393,4.97564,2009.8,2009.3,29.23317495]
[1742774289563,7.97505,2010.1,2009.5,4.9762]
[1742774289765,7.97505,2010.1,2009.6,0.0497557]
[1742774290094,3.0,2010.1,2009.6,4.97603]
[1742774290286,7.97426,2010.4,2009.7,0.04975345]
[1742774290482,7.97426,2010.4,2009.7,4.97584]
[1742774290666,4.97465,2010.2,2009.6,8.7508]
[1742774290859,3.0,2010.1,2009.7,1.2191646]
[1742774291065,7.97488,2010.1,2009.7,1.2191646]
[1742774291386,7.97492,2010.1,2009.7,1.2191646]
[1742774291791,3.0,2010.1,2009.7,1.2191646]
[1742774292392,3.0,2010.1,2009.5,8.98683366]
[1742774292393,4.97503,2010.1,2009.5,16.98683366]
[1742774292559,4.97503,2010.1,2009.5,21.96304366]
[1742774293196,4.97503,2010.1,2009.6,8.0]
[1742774293397,4.97503,2010.1,2009.6,12.97609]
[1742774293598,4.97462,2010.2,2009.6,12.97609]
[1742774293895,4.9738,2010.6,2009.9,0.55]
[1742774294096,4.97365,2010.6,2010.0,4.97499]
[1742774294298,3.0,2010.5,2010.0,8.0]
[1742774294608,4.97466,2010.2,2010.0,8.0]
[1742774294901,7.97427,2010.4,2010.0,8.0]
[1742774295197,4.97427,2010.4,2010.0,8.0]
[1742774295394,3.0,2010.2,2009.9,5.272]
[1742774295597,3.0,2010.6,2010.0,5.0246882]
[1742774295897,0.1209504,2010.8,2010.5,4.9737]
[1742774296603,0.1209504,2010.8,2010.4,14.0228]
[1742774296768,3.0,2010.7,2010.4,14.0228]
[1742774297098,3.0,2010.7,2010.4,13.272]
[1742774297279,3.0,2010.7,2010.4,5.272]
[1742774297893,3.0,2010.7,2010.4,7.594076]
[1742774298479,3.0,2010.7,2010.4,12.568206]
[1742774298793,3.0,2010.7,2010.5,0.04973575]
[1742774299095,0.1209504,2010.8,2010.4,17.542046]
[1742774299305,0.1209504,2010.8,2010.5,8.0]
[1742774299598,0.1209504,2010.8,2010.5,15.5280746]
[1742774299894,0.1209504,2010.8,2010.6,4.9735]
[1742774300077,0.1209504,2010.8,2010.6,5.7243]
[1742774300281,0.1209504,2010.8,2010.6,13.7243]
[1742774301179,0.1209504,2010.8,2010.5,2.5542046]
[1742774301585,10.0676204,2010.8,2010.5,5.255]
[1742774301788,7.97388,2010.5,2010.4,8.0]
[1742774302182,3.0,2010.5,2010.1,4.97484]
[1742774302705,4.97415,2010.4,2010.0,5.252]
[1742774303087,7.97439,2010.3,2010.0,5.252]
[1742774303278,3.0,2010.3,2010.0,11.83656926]
[1742774303467,3.0,2010.3,2010.0,11.83644926]
[1742774303667,3.0,2010.3,2010.0,11.83642926]
[1742774303901,3.0,2010.3,2010.0,6.86144926]
[1742774304071,3.0,2010.4,2010.0,6.86144926]
[1742774304475,3.0,2010.4,2010.0,11.83651926]
[1742774304676,3.0,2010.5,2010.1,7.50555885]
[1742774304877,3.0,2010.6,2010.2,5.255]
[1742774305070,4.97408,2010.5,2010.2,5.255]
[1742774305291,9.94847,2010.4,2010.0,5.253]
[1742774305484,3.0,2010.4,2010.0,10.22808]
[1742774305695,3.0,2010.5,2010.1,7.295192]
[1742774305904,7.9739,2010.5,2010.1,2.320322]
[1742774306100,3.0,2010.5,2010.1,2.320322]
[1742774306271,7.97401,2010.5,2010.1,10.320322]
[1742774306474,4.97414,2010.4,2010.1,10.320322]
[1742774306671,4.9744,2010.3,2010.1,8.0]
[1742774307209,4.97414,2010.4,2010.1,8.0]
[1742774307515,3.0,2010.6,2009.8,0.8149]
[1742774307721,4.97498,2010.1,2009.8,5.251]
[1742774307931,3.0,2010.0,2009.7,8.0]
[1742774308083,4.97561,2009.8,2009.7,8.0]
[1742774308395,4.97561,2009.8,2009.6,5.255]
[1742774308577,4.97561,2009.8,2009.4,5.253]
[1742774308774,4.97561,2009.8,2009.4,9.606764]
[1742774308975,4.97588,2009.7,2009.4,9.606764]
[1742774309549,4.97561,2009.8,2009.4,9.606764]
[1742774310391,9.95138,2009.8,2009.4,9.606764]
[1742774310890,4.97561,2009.8,2009.4,9.606764]
[1742774311889,4.97587,2009.7,2009.4,9.606764]
[1742774312084,4.97561,2009.8,2009.4,9.606764]
[1742774313010,9.953,2009.5,2009.2,8.0]
[1742774313209,9.953,2009.5,2009.1,5.246]
[1742774313407,4.9769,2009.3,2009.1,5.244]
[1742774313601,4.97671,2009.4,2009.1,5.244]
[1742774313800,9.95343,2009.4,2009.1,5.244]
[1742774314013,4.97686,2009.3,2009.1,5.244]
[1742774314181,9.95395,2009.3,2009.0,5.24]
[1742774314380,4.97686,2009.3,2009.0,5.24]
[1742774314604,4.97682,2009.4,2009.0,5.24]
[1742774315416,4.97699,2009.3,2009.0,5.24]
[1742774315710,4.97699,2009.3,2009.0,5.19]
[1742774316121,4.9771,2009.2,2009.0,5.19]
[1742774316326,4.9771,2009.2,2008.7,13.75059]
[1742774316536,4.97763,2009.0,2008.8,5.229]
[1742774316744,4.97763,2009.0,2008.8,5.228]
[1742774317241,4.97763,2009.0,2008.6,4.97837]
[1742774317450,4.97763,2009.0,2008.7,5.225]
[1742774317608,4.97786,2008.9,2008.7,5.225]
[1742774318121,3.0,2009.2,2008.5,18.19973]
[1742774318122,3.0,2009.0,2008.5,18.19973]
[1742774318356,3.0,2009.2,2008.5,15.18626635]
[1742774318499,4.97785,2008.9,2008.5,5.221]
[1742774318698,4.97785,2008.9,2008.5,10.19974]
[1742774318894,4.97785,2008.9,2008.5,5.221]
[1742774319112,4.97785,2008.9,2008.5,10.1998]
[1742774319308,3.0,2009.0,2008.6,4.97857]
[1742774319537,7.97775,2009.0,2008.5,10.1998]
[1742774319729,7.97772,2009.0,2008.5,15.18633635]
[1742774319926,4.97795,2008.9,2008.5,15.18624635]
[1742774320107,12.95545,2009.0,2008.5,15.18624635]
[1742774320309,7.97772,2009.0,2008.6,4.97859]
[1742774320512,3.0,2009.1,2008.7,5.80040153]
[1742774320715,7.9767,2009.4,2008.9,4.97779]
[1742774320929,7.9767,2009.4,2008.9,10.18374]
[1742774321123,7.9767,2009.4,2008.9,15.16146]
[1742774321509,7.9767,2009.4,2008.9,15.16145]
[1742774321830,7.9767,2009.4,2009.0,4.97757]
[1742774322525,4.97695,2009.3,2008.9,10.76636499]
[1742774323104,7.9767,2009.4,2008.9,10.76636499]
[1742774323314,3.0,2009.4,2009.0,5.79953123]
[1742774323534,3.0,2009.4,2009.1,4.97735]
[1742774323699,3.0,2009.4,2009.0,5.79945123]
[1742774323700,4.97582,2009.8,2009.3,9.95368]
[1742774323899,4.97582,2009.8,2009.4,5.9623]
[1742774324094,4.97537,2009.9,2009.4,5.9623]
[1742774324308,4.97537,2009.9,2009.5,4.97626]
[1742774324698,9.95085,2009.9,2009.5,4.97626]
[1742774324928,4.97537,2009.9,2009.5,4.97626]
[1742774325126,4.97537,2009.9,2009.5,6.61751126]
[1742774325322,9.9509,2009.9,2009.5,1.591494]
[1742774325524,4.97537,2009.9,2009.5,1.591494]
[1742774325823,3.0,2010.5,2009.5,1.591494]
[1742774326107,4.97587,2009.7,2009.4,5.9623]
[1742774326501,4.97587,2009.7,2009.5,5.176]
[1742774326848,4.97587,2009.7,2009.4,0.7723]
[1742774327205,4.97587,2009.7,2009.5,5.173]
[1742774327408,4.97587,2009.7,2009.6,5.171]
[1742774327603,7.97568,2009.8,2009.4,0.7723]
[1742774327955,4.97596,2009.7,2009.5,5.169]
[1742774328300,3.0,2009.9,2009.6,5.5261]
[1742774328651,7.97541,2009.9,2009.6,0.55]
[1742774329002,7.97541,2009.9,2009.7,5.163]
[1742774329403,12.95099,2009.9,2009.7,5.163]
[1742774329632,7.97541,2009.9,2009.7,5.163]
[1742774329817,12.95102,2009.9,2009.7,5.163]
[1742774330151,4.97561,2009.8,2009.7,5.157]
[1742774330503,4.97561,2009.8,2009.5,0.55]
[1742774330750,4.97561,2009.8,2009.6,5.154]
[1742774331036,9.95145,2009.8,2009.6,5.154]
[1742774331454,4.97497,2010.1,2009.7,0.55]
[1742774331746,7.97521,2010.0,2009.8,0.7715]
[1742774331904,4.97537,2009.9,2009.8,0.7715]
[1742774332713,4.97537,2009.9,2009.6,5.9255]
[1742774332909,4.97537,2009.9,2009.6,8.50188082]
[1742774333117,4.97537,2009.9,2009.6,5.9255]
[1742774333606,3.0,2010.3,2009.6,5.9255]
[1742774333807,7.97439,2010.3,2009.6,5.9255]
[1742774334309,3.0,2010.4,2009.6,10.90155]
[1742774334711,7.97414,2010.4,2009.6,10.90155]
[1742774334931,8.34971403,2010.4,2009.6,10.90155]
[1742774335327,3.1209504,2010.8,2009.7,5.52585]
[1742774335653,0.1209504,2010.8,2010.1,4.97481]
[1742774335855,0.1209504,2010.8,2010.2,5.138]